Cogmind - Beta 10.2 @@@ ROGUE MODE // 2021.02.09 @ 18:36:37 Player: Togure Result: Destroyed by YI-UF0 with YI-UF0's Doublenader Performance ------------- Evolutions (0) 0 Regions Visited (2) 400 Robots Destroyed (5) 25 Value Destroyed (79) 79 Prototype IDs (0) 0 Alien Tech Used (0) 0 Bonus (-3) -3 TOTAL SCORE: 501 Bonus ------- Friendly Fire -3 Cogmind --------- Core Integrity 0/250 Matter 108/300 Energy 100/100 System Corruption 0% Temperature Cool (0) Movement Walking (150) Ox1 Location -10/Mines Parts ------- > --- POWER (1) -------- (None) > --- PROPULSION (2) --- Aluminum Leg > --- UTILITY (2) ------ Large Storage Unit Sensor Array > --- WEAPON (2) ------- Light Assault Rifle > --- INVENTORY (10) --- Propulsion Shielding Light Armor Plating Medium Laser Mining Laser Peak State ------------ > --- POWER ------------ Light Ion Engine > --- PROPULSION ------- Aluminum Leg Aluminum Leg > --- UTILITY ---------- Large Storage Unit Light Armor Plating > --- WEAPON ----------- Assault Rifle Grenade Launcher > --- INVENTORY -------- Medium Laser Light Assault Rifle [Rating: 7] Favorites ----------- Power Light Ion Engine Engine Light Ion Engine Propulsion Aluminum Leg Leg Aluminum Leg Utility Large Storage Unit Device Sensor Array Storage Large Storage Unit Protection Light Armor Plating Weapon Grenade Launcher Ballistic Gun Assault Rifle Launcher Grenade Launcher Build | -11 -10 -10 ------- Run | Scr Mat Min Slots Evolved . | . . . Power . | . . . Propulsion . | . . . Utility . | . . . Weapon . | . . . Parts Attached 17 | 5 9 3 Power 2 | 1 1 . Engine 2 | 1 1 . Core . | . . . Reactor . | . . . Propulsion 3 | 2 1 . Treads . | . . . Leg 3 | 2 1 . Wheel . | . . . Hover . | . . . Flight . | . . . Utility 3 | . 3 . Device 1 | . 1 . Storage 1 | . 1 . Processor . | . . . Hackware . | . . . Protection 1 | . 1 . Artifact . | . . . Weapon 9 | 2 4 3 Energy Gun . | . . . Energy Cannon . | . . . Ballistic Gun 5 | 2 1 2 Ballistic Cannon . | . . . Launcher 4 | . 3 1 Special Weapon . | . . . Impact Weapon . | . . . Slashing Weapon . | . . . Piercing Weapon . | . . . Special Melee Weapon . | . . . Unidentified Prototypes . | . . . Parts Lost 5 | . . 5 Power 1 | . . 1 Propulsion 1 | . . 1 Utility . | . . . Weapon 3 | . . 3 Highest Loss Streak 5 | . . 5 Average Slot Usage (%) 87 | . 88 82 Engine 12 | . 13 7 Leg 26 | . 27 21 Device 6 | . 4 14 Storage 12 | . 12 14 Protection 2 | . 2 . Ballistic Gun 13 | . 15 7 Launcher 12 | . 11 15 Naked Turns . | . . . Heaviest Build 27 | 6 27 26 Greatest Support 20 | 20 20 20 Greatest Overweight (x) 1 | . 1 1 Average Overweight (x) . | . . 1 Largest Inventory Capacity 10 | 4 10 10 Average Capacity 8 | 4 9 10 Most Carried 6 | 3 6 6 Average Carried 2 | . 2 5 Final Capacity 10 | 4 10 10 Final Carried 5 | 1 5 4 Class Distribution -------------------- 100% | Mutant Dominant Class ---------------- Mutant | -10/Materials Mutant | -10/Mines Resources | -11 -10 -10 ----------- Run | Scr Mat Min Matter Collected 262 | 254 . 8 Remotely . | . . . Salvage Created 95 | 42 . 53 Parts 16 | 2 . 14 Haulers Intercepted . | . . . Recyclers Shooed . | . . . Parts Field Recycled . | . . . Retrieved Matter . | . . . Parts Self-Destructed . | . . . Prevented . | . . . Kills | -11 -10 -10 ------- Run | Scr Mat Min Combat Hostiles Destroyed 10 | 1 . 9 Guns 1 | 1 . . AOE 9 | . . 9 Classes Destroyed 4 | 1 . 3 Builder 1 | . . 1 Swarmer 3 | . . 3 Grunt 1 | 1 . . Assembled 6 | . . 6 Best Kill Streak 10 | 1 . 10 Combat Bots Only 9 | 1 . 9 Max Kills in Single Turn 3 | 1 . 3 Gunslinging . | . . . Exploded 3 | . . 3 Melee . | . . . Uniques/NPCs Destroyed . | . . . Combat | -11 -10 -10 -------- Run | Scr Mat Min Damage Taken 862 | 21 . 841 Core 269 | . . 269 Absorbed by Shields . | . . . Core Remaining (%) 100 | 100 . . Volleys Fired 12 | 1 . 11 Largest 2 | 2 . 2 Hottest 60 | 40 . 60 Shots Fired 17 | 2 . 15 Gun 7 | 2 . 5 Cannon . | . . . Launcher 10 | . . 10 Special . | . . . Kinetic 7 | 2 . 5 Thermal . | . . . Explosive 10 | . . 10 Electromagnetic . | . . . Robot Hit Streak 4 | 2 . 4 Robot Miss Streak 3 | . . 3 Penetration Max . | . . . Secondary Targets . | . . . Shots Hit Robots 9 | 2 . 7 Core Hits 28 | 1 . 27 Critical Hits 1 | 1 . . Critical Kills 1 | 1 . . Critical Parts Destroyed . | . . . Melee Attacks . | . . . Impact . | . . . Slashing . | . . . Piercing . | . . . Sneak Attacks . | . . . Combat Hostiles . | . . . Follow-up Attacks . | . . . Damage Inflicted 771 | 21 . 750 Guns 42 | 21 . 21 Cannons . | . . . Explosions 729 | . . 729 Melee . | . . . Ramming . | . . . Kinetic 42 | 21 . 21 Thermal . | . . . Explosive 729 | . . 729 Electromagnetic . | . . . Impact . | . . . Slashing . | . . . Piercing . | . . . Highest Corruption . | . . . Average Corruption . | . . . Corruption Purged . | . . . Overload Shots . | . . . Overflow Damage 4 | . . 4 Projectiles . | . . . Explosions 4 | . . 4 Melee . | . . . Knockbacks . | . . . Impact . | . . . Kinetic . | . . . Secondary . | . . . Self-Inflicted Damage 63 | . . 63 Shots 3 | . . 3 Rammed . | . . . Targets Rammed . | . . . Kicked . | . . . Crushed . | . . . Highest Temperature 20 | . . 20 Average Temperature 20 | . . 20 Received Heat Transfer 32 | 12 . 20 Siege Activations . | . . . Robots Corrupted . | . . . Combat Hostiles . | . . . Parts Fried . | . . . Impact Corruptions . | . . . Robots Melted . | . . . Combat Hostiles . | . . . Parts Melted . | . . . Heat Transferred . | . . . Parts Sabotaged . | . . . Parts Stolen . | . . . Parts Stripped . | . . . Power Chain Reactions . | . . . Missiles Intercepted . | . . . Alert | -11 -10 -10 ------- Run | Scr Mat Min Peak Influence 74 | 20 13 74 Initial 13 | . 13 4 Average 15 | . 13 38 Maximum Alert Level . | . . . Low Security (%) 100 | 100 100 100 Level 1 . | . . . Level 2 . | . . . Level 3 . | . . . Level 4 . | . . . Level 5 . | . . . High Security . | . . . Max Security . | . . . Squads Dispatched . | . . . Investigation . | . . . Extermination . | . . . Reinforcement . | . . . Assault . | . . . Garrison . | . . . Intercept . | . . . Construction Impeded . | . . . Haulers Reinforced . | . . . Stealth | -11 -10 -10 --------- Run | Scr Mat Min Distress Signals . | . . . Communications Jammed . | . . . Distress Signals . | . . . Times Spotted 24 | 1 1 22 Peak Tracking Total 11 | 1 1 11 Tactical Retreats . | . . . Traps | -11 -10 -10 ------- Run | Scr Mat Min Traps Triggered 2 | . 2 . Indirectly . | . . . Trap Hack Attempts . | . . . Triggered . | . . . Disarmed . | . . . Reprogrammed . | . . . Reused . | . . . Traps Extracted . | . . . Installed . | . . . Triggered . | . . . Machines | -11 -10 -10 ---------- Run | Scr Mat Min Machines Disabled 1 | . . 1 Max in Single Turn 1 | . . 1 Machines Sabotaged . | . . . Garrisons Compromised . | . . . Overloaded Fab Kills . | . . . Fab Network Shutdowns . | . . . Hacking | -11 -10 -10 --------- Run | Scr Mat Min Machines Accessed . | . . . Terminals . | . . . Fabricators . | . . . Repair Stations . | . . . Recycling Units . | . . . Scanalyzers . | . . . Garrison Access . | . . . Total Hacks . | . . . Successful . | . . . Failed . | . . . Catastrophic . | . . . Database Lockouts . | . . . Manual . | . . . Terminals . | . . . Fabricators . | . . . Repair Stations . | . . . Recycling Units . | . . . Scanalyzers . | . . . Garrison Access . | . . . Terminal Hacks . | . . . Fabricator Hacks . | . . . Repair Station Hacks . | . . . Recycling Unit Hacks . | . . . Scanalyzer . | . . . Garrison Access Hacks . | . . . Unauthorized Hacks . | . . . Terminals . | . . . Fabricators . | . . . Repair Stations . | . . . Recycling Units . | . . . Scanalyzers . | . . . Garrison Access . | . . . Data Cores Recovered . | . . . Used . | . . . Hacking Detections . | . . . Full Trace Events . | . . . Feedback Events . | . . . Feedback Blocked . | . . . Robot Schematics Acquired . | . . . Robots Built . | . . . Matter . | . . . Time . | . . . Total Robot Build Rating . | . . . Part Schematics Acquired . | . . . Parts Built . | . . . Matter . | . . . Time . | . . . Total Part Build Rating . | . . . Parts Repaired . | . . . Time . | . . . Parts Recycled . | . . . Recycled Matter . | . . . Retrieved Matter . | . . . Retrieved Components . | . . . Parts Scanalyzed . | . . . Part Schematics Acquired . | . . . Parts Damaged . | . . . Bothacking | -11 -10 -10 ------------ Run | Scr Mat Min Used RIF Installer . | . . . Robots Hacked . | . . . Non-combat . | . . . Combat . | . . . Robot Hacks Applied . | . . . Relay Couplers Released . | . . . Robots Rewired . | . . . Allies Hacked . | . . . Hacks Repelled . | . . . Allies | -11 -10 -10 -------- Run | Scr Mat Min Total Allies . | . . . Largest Group . | . . . Highest-Rated Group . | . . . Highest-Rated Ally . | . . . Total Orders . | . . . Ally Attacks . | . . . Total Damage . | . . . Kills . | . . . Allies Corrupted . | . . . Allies Melted . | . . . Intel | -11 -10 -10 ------- Run | Scr Mat Min Robot Analysis Total . | . . . Derelict Logs Recovered . | . . . Drone Launches . | . . . Drone Recoveries . | . . . Exploration | -11 -10 -10 ------------- Run | Scr Mat Min Turns Passed 530 | 77 363 90 Spaces Moved 269 | 64 176 29 Core 19 | 19 . . Treads . | . . . Legs 250 | 45 176 29 Wheels . | . . . Hover . | . . . Flight . | . . . Fastest Speed 50 | 50 120 150 Average Speed 134 | 99 144 150 Slowest Speed 150 | 120 150 150 Overloaded Moves . | . . . Propulsion Burnouts . | . . . Robots Hopped . | . . . Cave-ins Triggered . | . . . Exploration Rate (%) 17 | 6 34 11 Regions Visited 2 Branch Regions 1 Pre-discovered Areas . | . . . Known Exits Taken . | . . . Unknown Exits Taken 2 | 1 1 . Scrap Searched . | . . . Spaces Dug . | . . . Terrain Destroyed 62 | . . 62 Melee . | . . . Projectile . | . . . AOE 62 | . . 62 Terrain Rammed . | . . . Walls Destroyed . | . . . Machines Disabled . | . . . Actions | -11 -10 -10 --------- Run | Scr Mat Min Total 421 | 75 285 61 Wait 106 | . 89 17 Move 267 | 63 175 29 Hop . | . . . Pick Up 17 | 6 10 1 Fast Attach . | . . . Attach 15 | 5 8 2 Detach 2 | . 2 . Swap 2 | . 1 1 Drop . | . . . Fire 12 | 1 . 11 Melee . | . . . Ram . | . . . Kick . | . . . Crush . | . . . Escape Stasis . | . . . Rewire . | . . . Trap . | . . . Miscellaneous . | . . . Route ------- -11/Scrapyard -10/Materials -10/Mines History --------- Turn | Location | Event 2 | -11/Scrapyard | Met Revision 17 66 | -11/Scrapyard | Discovered new exit (range 8) 78 | -11/Scrapyard | Entered Materials 307 | -10/Materials | Build established: Mutant 382 | -10/Materials | Discovered new exit (range 14) 441 | -10/Materials | Entered Mines 458 | -10/Mines | YI-UF0 nonchalantly dropped a Grenade Launcher on the ground 468 | -10/Mines | Assembled infested the area 507 | -10/Mines | Core integrity fell below 50% 519 | -10/Mines | Destroyed 9 combat bots 524 | -10/Mines | Core integrity fell below 20% 531 | -10/Mines | Destroyed by YI-UF0 with YI-UF0's Doublenader Last Messages --------------- 00501_ The unstable cave ceiling collapses. 00501_ C-30 ARC bursts open, deploying its payload. 00501_ D-53 Grenadier unfolds itself. 00501_ Grenade Launcher destroyed. 00501_ U-05 Engineer destroyed. 00502_ The unstable cave ceiling collapses. 00503_ Matter Pump disabled. 00504_ YI-UF0 mumbles something. 00505_ Grenade Launcher destroyed. 00508_ The unstable cave ceiling collapses. 00510_ YI-UF0: "Whaaaaaaaa!" 00511_ The unstable cave ceiling collapses. 00512_ as-21445 destroyed. 00513_ The unstable cave ceiling collapses. 00515_ D-53 Grenadier destroyed. 00516_ The unstable cave ceiling collapses. 00517_ D-53 Grenadier destroyed. 00518_ The unstable cave ceiling collapses. 00522_ Assault Rifle destroyed. 00524_ The unstable cave ceiling collapses. Map ----- +----------------------------------------------------+ | | | | | | | | | | | ????????????????????????????????????????? | | ????????????????????????????????????????? | | ????????????????????????????????????????? | | ????????????????????????????????????????? | | ????????????????????###?????????????????? | | ?????????????????### ##????????????????? | | ??????????????# ###??? ??????????? | | ????????????%?# # ??? #??????????? | | ???????????#[## ### ???????????? | | ????????????%*[ ????????????? | | ?????????????= #????????????? | | ?????????????? # ####?????????? | | ??????????????# # # ##????????? | | ?????????????## # #????????? | | ?????????????## # # ?????????? | | ?????????????# "" ?????????? | | ????????????## # ##??????? | | ????????????# ##?????? | | ????????????# g #?????? | | ????????????# # #???? | | ????????????# @ # ???? | | ??????????# # # ???? | | ??????????# # # # ????? | | ??????????# # # # ????? | | ??????????### ##???##??? ?????? | | ????????????## ###????????????????? | | ?????????????# ##??????????????????? | | ?????????????### #???????????????????? | | ???????????????## ##???????????????????? | | ????????????????####????????????????????? | | ????????????????????????????????????????? | | ????????????????????????????????????????? | | ????????????????????????????????????????? | | ????????????????????????????????????????? | | ????????????????????????????????????????? | | ????????????????????????????????????????? | | ????????????????????????????????????????? | | ????????????????????????????????????????? | | ????????????????????????????????????????? | | ????????????????????????????????????????? | | ????????????????????????????????????????? | | ????????????????????????????????????????? | | ????????????????????????????????????????? | | ????????????????????????????????????????? | | ????????????????????????????????????????? | +----------------------------------------------------+ Best States ------------- Heat Dissipation 25 Energy Generation 10 Energy Capacity 125 Matter Stores 300 Matter Capacity 300 Sight Range 16 Robot Scan Range 10 Terrain Scan Density 10 Armor Coverage 150 Evasion (%) 50 Item Schematics ----------------- None Robot Schematics ------------------ None Fabricated ------------ Nothing Alien Tech Used ----------------- None Achievements -------------- None Challenges ------------ None Game ------ Seed TrackerMetafieldProtomatter Manual? 0 Play Time 00:10:39 Cumulative 13.9 hours Start 2021.02.09 @ 18:23:00 End 2021.02.09 @ 18:36:37 Sessions 1 Manual Loads 0 Difficulty Rogue Special Mode None Game No. 34 Rogue 34 Adventurer 0 Explorer 0 Win Type - Total 0 Types 0/0/0/0/0/0/0/0/0 Lore% 18 Gallery% 16 Achievement% 13 Wizard Run 0 Options --------- ASCII 0 Keyboard 0 Movement Numpad Keybinds 0 Fullscreen 1 Font 24/Smallcaps Map View 76x50 Tactical HUD 1 Map Filters NONE Filters NONE Steam 1 RUN: e5112c7b-1f7f-4ba7-8c51-b7310788520b